Cogmind - Beta 15 @@@ ROGUE MODE // 2025.08.19 @ 22:48:01 Player: luka.null Result: Destroyed self with Rocket Launcher Performance ------------- Evolutions (0) 0 Regions Visited (2) 400 Robots Destroyed (31) 155 Value Destroyed (799) 799 Prototype IDs (0) 0 Alien Tech Used (0) 0 Bonus (25) 25 TOTAL SCORE: 1379 Bonus ------- Follower Combat Kills 25 Cogmind --------- Core Integrity 0/250 Matter 272/300 Energy 258/265 System Corruption 0% Temperature Cool (0) Movement Treading (480) Ox4 Location -10/Mines Parts ------- > --- POWER (1) -------- Improved Ion Engine > --- PROPULSION (2) --- Light Treads > --- UTILITY (2) ------ Huge Storage Unit Targeting Computer > --- WEAPON (2) ------- Light Assault Rifle Rocket Launcher > --- INVENTORY (25) --- Improved Ion Engine Light Nuclear Core Light Treads Light Treads Aluminum Leg Aluminum Leg Splice Drone Bay EM Pulse Gun Medium Laser Mining Laser Mining Laser Hammer Peak State ------------ > --- POWER ------------ Improved Ion Engine > --- PROPULSION ------- Light Treads Light Treads > --- UTILITY ---------- Huge Storage Unit Targeting Computer > --- WEAPON ----------- Light Assault Rifle Rocket Launcher > --- INVENTORY -------- Improved Ion Engine Light Nuclear Core Light Treads Light Treads Aluminum Leg Aluminum Leg Splice Drone Bay EM Pulse Gun Medium Laser Mining Laser Mining Laser Hammer [Rating: 11] Favorites ----------- Power Improved Ion Engine Engine Improved Ion Engine Power Core Light Nuclear Core Propulsion Light Treads Treads Light Treads Utility Targeting Computer Storage Huge Storage Unit Processor Targeting Computer Weapon Medium Laser Energy Gun Medium Laser Ballistic Gun Light Assault Rifle Ballistic Cannon Light Cannon Launcher Rocket Launcher Impact Weapon Hammer Build | -11 -10 -10 ------- Run | Yrd Mat Min Slots Evolved . | . . . Power . | . . . Propulsion . | . . . Utility . | . . . Weapon . | . . . Parts Attached 19 | 6 10 3 Power 3 | 1 1 1 Engine 2 | 1 . 1 Core 1 | . 1 . Reactor . | . . . Propulsion 4 | 2 2 . Treads 4 | 2 2 . Leg . | . . . Wheel . | . . . Hover . | . . . Flight . | . . . Utility 5 | 1 4 . Device . | . . . Storage 4 | 1 3 . Processor 1 | . 1 . Hackware . | . . . Protection . | . . . Artifact . | . . . Weapon 7 | 2 3 2 Energy Gun 3 | 2 1 . Energy Cannon . | . . . Ballistic Gun 1 | . 1 . Ballistic Cannon 1 | . 1 . Launcher 1 | . . 1 Special Weapon . | . . . Impact Weapon 1 | . . 1 Slashing Weapon . | . . . Piercing Weapon . | . . . Special Melee Weapon . | . . . Unidentified Prototypes . | . . . Parts Lost 6 | . 4 2 Power 2 | . 2 . Propulsion 1 | . . 1 Utility . | . . . Weapon 3 | . 2 1 Highest Loss Streak 2 | . 2 1 To Critical Strikes . | . . . Average Backups 9 | 1 7 11 Power 1 | . 1 1 Propulsion 2 | . 1 4 Utility . | . . . Weapon 4 | . 3 5 Tool/Special . | . . . Unused Backups 10 | . 2 8 Power 4 | . 2 2 Propulsion 2 | . . 2 Utility 1 | . . 1 Weapon 3 | . . 3 Tool/Special . | . . . Average Slot Usage (%) 95 | . 93 97 Engine 9 | . 6 11 Core 1 | . 1 . Treads 27 | . 28 27 Storage 14 | . 14 14 Processor 13 | . 13 14 Energy Gun 10 | . 19 . Ballistic Gun 8 | . 4 14 Ballistic Cannon 8 | . 4 12 Peak Build Rating 11 | 6 10 11 Average Rating 8 | 5 7 9 On Entrance 4 | . 6 7 Naked Turns . | . . . Heaviest Build 92 | 14 89 92 Greatest Support 40 | 40 40 40 Greatest Overweight (x) 4 | . 2 4 Average Overweight (x) 1 | . . 2 Largest Inventory Capacity 25 | 8 25 25 Average Capacity 20 | 7 17 25 Most Carried 13 | 2 11 13 Average Carried 9 | 1 7 11 Final Capacity 25 | 8 25 25 Final Carried 12 | 2 11 12 Class Distribution -------------------- 100% | Mutant Dominant Class ---------------- Mutant | -10/Materials Mutant | -10/Mines Resources | -11 -10 -10 ----------- Run | Yrd Mat Min Matter Collected 554 | 177 217 160 Remotely . | . . . Salvage Created 1023 | . 737 286 Parts 50 | . 38 12 Haulers Intercepted . | . . . Recyclers Shooed . | . . . Parts Field Recycled . | . . . Retrieved Matter . | . . . Parts Self-Destructed . | . . . Prevented . | . . . Kills | -11 -10 -10 ------- Run | Yrd Mat Min Combat Hostiles Destroyed 26 | . 17 9 Guns 14 | . 14 . Cannons 6 | . 2 4 AOE 5 | . . 5 Classes Destroyed 5 | . 5 . Worker 1 | . 1 . Recycler 2 | . 1 1 Watcher 2 | . 2 . Swarmer 8 | . 5 3 Grunt 18 | . 12 6 Best Kill Streak 3 | . 3 3 Combat Bots Only 3 | . 3 3 Max Kills in Single Turn 3 | . 1 3 Gunslinging . | . . . Exploded 3 | . . 3 Melee . | . . . Uniques/NPCs Destroyed . | . . . Combat | -11 -10 -10 -------- Run | Yrd Mat Min Hostile Shots Fired 155 | . 88 67 Missed 44 | . 24 20 Hits 111 | . 64 47 Projectile 111 | . 64 47 Critical Strikes 2 | . 2 . Damage Taken 1283 | . 756 527 Core 250 | . 132 118 Absorbed by Shields . | . . . Core Remaining (%) 100 | 100 . . Volleys Fired 90 | . 55 35 Largest 2 | . 2 2 Hottest 100 | . 100 53 Shots Fired 166 | . 108 58 Gun 130 | . 95 35 Cannon 31 | . 13 18 Launcher 5 | . . 5 Special . | . . . Kinetic 81 | . 28 53 Thermal 80 | . 80 . Explosive 5 | . . 5 Electromagnetic . | . . . Robot Hit Streak 14 | . 14 10 Robot Miss Streak 5 | . 3 5 Penetration Max . | . . . Secondary Targets . | . . . Shots Hit Robots 117 | . 76 41 Core Hits 57 | 1 37 19 Critical Kills . | . . . Critical Parts Destroyed . | . . . Critical Strikes 9 | . 9 . Burn 9 | . 9 . Melee Attacks . | . . . Impact . | . . . Slashing . | . . . Piercing . | . . . Sneak Attacks . | . . . Combat Hostiles . | . . . Follow-up Attacks . | . . . Damage Inflicted 1862 | 10 1011 841 Guns 1045 | . 850 195 Cannons 459 | . 157 302 Explosions 342 | . . 342 Melee . | . . . Ramming 16 | 10 4 2 Kinetic 743 | . 246 497 Thermal 761 | . 761 . Explosive 342 | . . 342 Electromagnetic . | . . . Impact . | . . . Slashing . | . . . Piercing . | . . . Highest Corruption . | . . . Average Corruption . | . . . Corruption Purged . | . . . Corruption Blocked . | . . . Overload Shots . | . . . Overflow Damage 1 | . . 1 Projectiles . | . . . Explosions 1 | . . 1 Melee . | . . . Knockbacks 8 | 1 5 2 Impact 1 | 1 . . Kinetic 5 | . 3 2 Secondary 2 | . 2 . Self-Inflicted Damage 8 | . . 8 Shots 1 | . . 1 Rammed 10 | 7 2 1 Targets Rammed 10 | 7 2 1 Kicked . | . . . Crushed . | . . . Highest Temperature 393 | . 393 54 Average Temperature 102 | . 124 17 Received Heat Transfer 621 | . 372 249 Effects 1 | . 1 . Energy Bleed 1 | . 1 . Siege Activations . | . . . Martial Activations . | . . . Shielding Activations . | . . . Robots Disrupted . | . . . Combat Hostiles . | . . . Robots Corrupted . | . . . Combat Hostiles . | . . . Parts Fried . | . . . Impact Corruptions . | . . . Robots Melted 1 | . 1 . Combat Hostiles 1 | . 1 . Parts Melted 8 | . 8 . Heat Transferred 2923 | . 2923 . Parts Sabotaged . | . . . Parts Stolen . | . . . Parts Stripped . | . . . Power Chain Reactions . | . . . Alert | -11 -10 -10 ------- Run | Yrd Mat Min Maximum Alert Level . | . . . Low Security (%) 100 | 100 100 100 Level 1 . | . . . Level 2 . | . . . Level 3 . | . . . Level 4 . | . . . Level 5 . | . . . High Security . | . . . Max Security . | . . . Peak Influence 112 | . 100 112 Initial 25 | . . 25 Average 24 | . 33 14 Influence Increases 909 | . 576 333 Destroy 0b10 Robot/C 540 | . 340 200 Destroy 0b10 Robot/NC 25 | . 20 5 Destroy Leader 114 | . 84 30 Allied During Kill 1 | . . 1 Successful Hack 11 | . 11 . Disable Machine 15 | . . 15 Destroy Structure 38 | . 1 37 Lose Combat Pursuer 165 | . 120 45 Influence Decreases 779 | . 510 269 Entered New Map 41 | . . 41 Time Decay 668 | . 470 198 Lost Part 50 | . 40 10 Lost Ally 20 | . . 20 Squads Dispatched 5 | . 4 1 Investigation 2 | . 2 . Extermination . | . . . Reinforcement 2 | . 2 . Assault 1 | . . 1 Garrison . | . . . Intercept . | . . . Searches Triggered . | . . . Construction Impeded . | . . . Haulers Reinforced . | . . . Active Scanning Responses . | . . . Cargo Convoy Interrupts . | . . . Stealth | -11 -10 -10 --------- Run | Yrd Mat Min Distress Signals 4 | . 4 . Communications Jammed . | . . . Distress Signals . | . . . Times Spotted 47 | . 33 14 Peak Tracking Total 5 | . 5 4 Tactical Retreats 11 | . 8 3 Traps | -11 -10 -10 ------- Run | Yrd Mat Min Traps Triggered 3 | . 3 . Indirectly . | . . . Trap Hack Attempts . | . . . Triggered . | . . . Disarmed . | . . . Reprogrammed 6 | . 6 . Reused . | . . . Traps Extracted . | . . . Installed . | . . . Triggered . | . . . Machines | -11 -10 -10 ---------- Run | Yrd Mat Min Machines Disabled 1 | . . 1 Max in Single Turn 1 | . . 1 Machines Repaired . | . . . Machines Dismantled . | . . . Machines Sabotaged . | . . . Overloaded Fab Kills . | . . . Hacking | -11 -10 -10 --------- Run | Yrd Mat Min Machines Accessed 8 | . 6 2 Terminals 6 | . 5 1 Fabricators . | . . . Repair Stations . | . . . Recycling Units 1 | . 1 . Scanalyzers . | . . . Garrison Access . | . . . Total Hacks 20 | . 18 2 Successful 10 | . 8 2 Failed 10 | . 10 . Catastrophic 3 | . 3 . Database Lockouts . | . . . Manual 9 | . 9 . Terminals 17 | . 16 1 Fabricators . | . . . Repair Stations . | . . . Recycling Units 2 | . 2 . Scanalyzers . | . . . Garrison Access . | . . . Terminal Hacks 8 | . 6 2 Open Door 1 | . . 1 Level Access Points 1 | . 1 . Emergency Access Points 1 | . 1 . Alert Level 1 | . 1 . Locate Traps 1 | . 1 . Reprogram Traps 1 | . 1 . Zone Layout 2 | . 1 1 Fabricator Hacks . | . . . Repair Station Hacks . | . . . Recycling Unit Hacks 2 | . 2 . Report Inventory 1 | . 1 . Retrieve Components 1 | . 1 . Scanalyzer . | . . . Garrison Access Hacks . | . . . Unauthorized Hacks . | . . . Terminals . | . . . Fabricators . | . . . Repair Stations . | . . . Recycling Units . | . . . Scanalyzers . | . . . Garrison Access . | . . . Data Cores Recovered . | . . . Used . | . . . Hacking Detections 7 | . 6 1 Full Trace Events 3 | . 3 . Feedback Events . | . . . Feedback Blocked . | . . . Robot Schematics Acquired . | . . . Robots Built . | . . . Authchips . | . . . Time . | . . . Total Robot Build Rating . | . . . Part Schematics Acquired . | . . . Parts Built . | . . . Authchips . | . . . Time . | . . . Total Part Build Rating . | . . . Parts Repaired . | . . . Time . | . . . Parts Recycled . | . . . Recycled Matter . | . . . Retrieved Matter . | . . . Retrieved Components 1 | . 1 . Parts Scanalyzed . | . . . Part Schematics Acquired . | . . . Parts Damaged . | . . . Bothacking | -11 -10 -10 ------------ Run | Yrd Mat Min Used RIF Installer . | . . . Robots Hacked . | . . . Non-combat . | . . . Combat . | . . . Robot Hacks Applied . | . . . Relay Couplers Released . | . . . Fabnet Peak Effective % . | . . . Robots Rewired . | . . . Allies Hacked . | . . . Hacks Repelled . | . . . Allies | -11 -10 -10 -------- Run | Yrd Mat Min Total Allies 1 | . . 1 Largest Group 1 | . . 1 Highest-Rated Group 31 | . . 31 Highest-Rated Ally 31 | . . 31 Total Orders . | . . . Ally Attacks 8 | . . 8 Total Damage 147 | . . 147 Kills 1 | . . 1 Allies Corrupted . | . . . Allies Melted . | . . . Intel | -11 -10 -10 ------- Run | Yrd Mat Min Active Infowar (turns) . | . . . Robot Analysis Total . | . . . Derelict Logs Recovered 1 | . . 1 Drone Launches . | . . . Drone Recoveries . | . . . Exploration | -11 -10 -10 ------------- Run | Yrd Mat Min Turns Passed 4668 | 146 2435 2087 Spaces Moved 1703 | 83 1002 618 Core 7 | 7 . . Treads 1696 | 76 1002 618 Legs . | . . . Wheels . | . . . Hover . | . . . Flight . | . . . Fastest Speed 50 | 50 160 320 Average Speed 251 | 150 217 320 Slowest Speed 480 | 160 320 480 Overloaded Moves . | . . . Propulsion Burnouts . | . . . Robots Hopped . | . . . Potential Cave-ins . | . . . Cave-ins Triggered . | . . . Exploration Rate (%) 63 | 4 96 89 Regions Visited 2 Branch Regions 1 Pre-discovered Areas . | . . . Known Exits Taken . | . . . Unknown Exits Taken 2 | 1 1 . Scrap Searched 1 | . . 1 Spaces Dug 6 | . . 6 Terrain Destroyed 39 | . . 39 Melee . | . . . Projectile . | . . . AOE 39 | . . 39 Terrain Rammed . | . . . Walls Destroyed . | . . . Machines Disabled . | . . . Actions | -11 -10 -10 --------- Run | Yrd Mat Min Total 1924 | 97 1155 672 Wait 81 | . 70 11 Move 1701 | 82 1001 618 Hop . | . . . Pick Up 15 | 2 10 3 Fast Attach 8 | 6 2 . Attach 5 | . 3 2 Detach 1 | . 1 . Swap 8 | . 6 2 Drop 5 | . 5 . Fire 90 | . 55 35 Melee . | . . . Ram . | . . . Kick . | . . . Crush 10 | 7 2 1 Escape Stasis . | . . . Rewire . | . . . Trap . | . . . Miscellaneous . | . . . Route ------- -11/Scrapyard -10/Materials (discovered 4 exits: *Mat x3 / *Min) -10/Mines (discovered 2 exits: *Mat x2) History --------- Turn | Location | Event 27 | -11/Scrapyard | Discovered new exit (range 15) 147 | -11/Scrapyard | Entered Materials 277 | -10/Materials | Discovered new exit (range 8) 313 | -10/Materials | Build established: Mutant 525 | -10/Materials | Discovered new exit (range 15) 1488 | -10/Materials | Discovered new exit (range 16) 1773 | -10/Materials | Identified exit to Materials 2391 | -10/Materials | Core integrity fell below 50% 2582 | -10/Materials | Entered Mines 2755 | -10/Mines | Found the Drone Emporium 2773 | -10/Mines | Found Prototype Device 3479 | -10/Mines | Discovered exit to Materials (range 5) 3492 | -10/Mines | Received a Rocket Launcher from a helpful Derelict 3652 | -10/Mines | Learned location of 1 exit from Materials 4454 | -10/Mines | Discovered exit to Materials (range 12) 4618 | -10/Mines | Met a Derelict testing a Signal Generator 4654 | -10/Mines | Core integrity fell below 20% 4669 | -10/Mines | Destroyed self with Rocket Launcher Last Messages --------------- generated transmissions. 04619_ ALERT: Intercepting significant anomalous signal. Redirecting assault force. 04626_ Signal Generator broadcasts a burst of procedurally generated transmissions. 04626_ ALERT: Intercepting significant anomalous signal. Redirecting assault force. 04626_ Signal Generator's internal power supply exhausted. 04633_ GC-71I(g): "Looks like the friends we called actually did show up to play. Couldn't you guys just take that other tunnel?" 04634_ C-30 ARC bursts open, deploying its payload. 04634_ G-47 Trooper unfolds itself. 04634_ G-34 Mercenary unfolds itself. 04639_ G-34 Mercenary destroyed. 04645_ Lgt. Treads destroyed. 04649_ GC-71I(g) overheating. 04650_ M-13 Machinist destroyed. 04650_ GC-71I(g) destroyed. 04669_ G-34 Mercenary destroyed. Map ----- +----------------------------------------------------+ | | | | | | | | | | | | | | | | | | | ????????????????????????????????? | | ????????????????????????????????? | | ????????????????????????????????? | | ????????????????????????????????? | | ????????????????????????????????? | | ????????????????????????????????? | | ????????????????????????????????? | | ????????????????????????????????? | | ??????????????####??????????????? | | ??????????????# ??????????????? | | ??????????????? ?????????###??? | | ?????????????### ???????## ##?? | | ????????????## ???????# #?? | | ????????????# ?????### #?? | | ???????????## ###### #??? | | ??????????## #???? | | ?????????## g[% @ #???? | | ########## ! =[%=%= ##???? | | ## %* ###????? | | # ### #### #### # ##???????? | | # #?# #### =##?## ##????????? | | # #?# #### #????????? | | # ######## ## #????????? | | # #???# ] #????????? | | #### #???# ####??????? | | #### #???# ## ! #??????? | | # #???## #### = # #??????? | | # #??##########*%= ##?????? | | # #??# ##*= ##????? | | " # #??# " %= #????? | | " # #### "" #???? | | " # #T < "" ## % #???? | | ### ## ## #???? | | " #?# ## ### #??? | | " #?# ## #?# ?? | | " #?# ##########?## #? | | #?# #???????????## #? | | ####?# #????????????# # ? | | #????# #????????????# ## # ##?? | | #????# #????#####???## ##?####??? | | #????# #???## ##???# #????????? | +----------------------------------------------------+ Best States ------------- Heat Dissipation 25 Energy Generation 14 Energy Capacity 265 Matter Stores 300 Matter Capacity 300 Sight Range 16 Terrain Scan Density 10 Evasion (%) 40 Targeting Accuracy 5 Recoil Reduction 2 Item Schematics ----------------- None Robot Schematics ------------------ None Fabricated ------------ Nothing Repaired ---------- Nothing Alien Tech Used ----------------- None Achievements -------------- None Challenges ------------ None Game ------ Seed ArmoredGrapheneJammer Manual? 0 Play Time 00:27:48 Cumulative 9.4 hours Start 2025.08.19 @ 22:18:00 End 2025.08.19 @ 22:48:01 Sessions 1 Manual Loads 0 Difficulty Rogue Special Mode None Game No. 6 Rogue 3 Adventurer 3 Explorer 0 Win Type - Total 0 Types 0/0/0/0/0/0/0/0/0/0 Lore% 9 Gallery% 8 Achievement% 11 Wizard Run 0 Options --------- Layout 1 ASCII 0 Keyboard 0 Movement Vi Keybinds 0 Fullscreen 0 Font 20/Terminus Map View 64x48 Zoom Use 0% Tactical HUD 1 Map Filters NONE Filters NONE Steam 1 RUN: 8f04db25-eee1-4b35-b6dc-691a059adca3